[Event "WTCC-65 2018"]
[Site "Radebeul"]
[Date "2018.07.07"]
[Round "1"]
[White "Choong, Liong On Mark"]
[Black "Baum, Bernd"]
[Result "0-1"]
[ECO "A36"]
[WhiteElo "1923"]
[BlackElo "2280"]
[Annotator "NA"]
[PlyCount "70"]
[EventDate "2018.07.07"]
[EventType "team-tourn"]
[EventCountry "GER"]
[SourceTitle "playchess.com"]
[Source "ChessBase"]
[SourceQuality "1"]
[TimeControl "40/5400+30:1800+30"]

1. c4 {[%emt 0:00:00]} c5 {[%emt 0:00:14]} 2. g3 {[%emt 0:00:18]} Nc6 {[%emt 0:00:29]} 3. Bg2 {[%emt 0:00:14]} g6 4. Nc3 {[%emt 0:02:22]} Bg7 {[%emt 0:00:37]} 5. d3 {[%emt 0:01:09]} d6 {[%emt 0:00:30]} 6. Rb1 {[%emt 0:03:43]} e5 {[%emt 0:02:03]} 7. a3 {[%emt 0:01:18]} a5 {[%emt 0:01:54]} 8. Nf3 {[%emt 0:06:00]} Nge7 {[%emt 0:00:23]} 9. O-O {[%emt 0:00:49]} O-O {[%emt 0:00:05]} 10. e3 {[%emt 0:01:57]} h6 {[%emt 0:03:08]} 11. Ne1 {[%emt 0:04:51]} Be6 {[%emt 0:00:46]} 12. Nd5 {[%emt 0:00:43]} Rb8 {[%emt 0:01:32]} 13. Bd2 {[%emt 0:04:50]} b5 {[%emt 0:02:38]} 14. b3 {[%emt 0:06:26]} Qd7 {[%emt 0:00:44]} 15. Nc2 {[%emt 0:01:44]} f5 {[%emt 0:05:30]} 16. Nxe7+ {[%emt 0:04:36]} Nxe7 {[%emt 0:00:06]} 17. Bxa5 {[%emt 0:00:21]} d5 {[%emt 0:03:06]} 18. Qe2 {[%emt 0:14:08]} bxc4 {[%emt 0:10:46]} 19. bxc4 {[%emt 0:01:36]} dxc4 {[%emt 0:02:15]} 20. dxc4 {[%emt 0:08:53]} Qa4 {[%emt 0:02:20]} 21. Bc7 {[%emt 0:01:13]} Bxc4 {[%emt 0:07:49]} 22. Qd2 {[%emt 0:01:07]} Rbc8 {[%emt 0:04:20]} 23. Qd6 {[%emt 0:13:29]} Bxf1 {[%emt 0:03:06]} 24. Bxf1 {[%emt 0:05:26]} Qxc2 {[%emt 0:10:20]} 25. Bd3 {[%emt 0:03:00]} Qc3 {[%emt 0:01:19]} 26. Rb7 {[%emt 0:01:18]} Bf6 {[%emt 0:15:11]} 27. a4 {[%emt 0:03:11]} Qa1+ {[%emt 0:02:37]} 28. Bf1 {[%emt 0:01:33]} Qxa4 {[%emt 0:10:36]} 29. Qe6+ {[%emt 0:00:18]} Rf7 {[%emt 0:04:32]} 30. Bc4 {[%emt 0:01:33]} Rcf8 {[%emt 0:01:37]} 31. Rb8 {[%emt 0:00:21]} Kg7 {[%emt 0:00:27]} 32. Bxe5 {[%emt 0:00:39]} Qa7 {[%emt 0:02:21]} 33. Re8 {[%emt 0:02:46]} Ng8 {[%emt 0:00:54]} 34. Bd5 {[%emt 0:03:35]} Rxe8 {[%emt 0:01:23]} 35. Qxe8 {[%emt 0:00:31]} Qd7 {[%emt 0:00:08]} 0-1

[Event "WTCC-65 2018"]
[Site "Radebeul"]
[Date "2018.07.07"]
[Round "1"]
[White "Bhopal, Raj"]
[Black "Emerson, Roger"]
[Result "1/2-1/2"]
[ECO "B40"]
[WhiteElo "1906"]
[BlackElo "2211"]
[Annotator "NA"]
[PlyCount "55"]
[EventDate "2018.07.07"]
[EventType "team-tourn"]
[EventCountry "GER"]
[SourceTitle "playchess.com"]
[Source "ChessBase"]
[SourceQuality "1"]
[TimeControl "40/5400+30:1800+30"]

1. e4 {[%emt 0:00:00]} c5 {[%emt 0:00:00]} 2. Nf3 {[%emt 0:00:00]} e6 {[%emt 0:00:14]} 3. Nc3 {[%emt 0:00:05]} Nc6 {[%emt 0:00:13]} 4. Be2 {[%emt 0:01:08]} a6 {[%emt 0:03:52]} 5. O-O {[%emt 0:02:08]} Nf6 {[%emt 0:01:20]} 6. Re1 {[%emt 0:01:51]} Be7 {[%emt 0:02:18]} 7. d4 {[%emt 0:03:05]} cxd4 {[%emt 0:00:47]} 8. Nxd4 {[%emt 0:00:10]} Qc7 {[%emt 0:00:13]} 9. Nxc6 {[%emt 0:06:31]} dxc6 {[%emt 0:01:26]} 10. Be3 {[%emt 0:04:02]} b5 {[%emt 0:06:45]} 11. Bf3 {[%emt 0:02:39]} e5 {[%emt 0:01:04]} 12. Qe2 {[%emt 0:08:18]} Be6 {[%emt 0:05:30]} 13. Red1 {[%emt 0:01:17]} O-O {[%emt 0:01:11]} 14. a4 {[%emt 0:07:14]} b4 {[%emt 0:09:53]} 15. Nb1 {[%emt 0:02:00]} c5 {[%emt 0:00:34]} 16. Nd2 {[%emt 0:03:07]} c4 {[%emt 0:02:52]} 17. Nf1 {[%emt 0:01:45]} a5 {[%emt 0:01:41]} 18. Bg5 {[%emt 0:02:13]} Rad8 {[%emt 0:08:56]} 19. Ne3 {[%emt 0:05:38]} Rxd1+ {[%emt 0:03:00]} 20. Rxd1 {[%emt 0:04:17]} Re8 {[%emt 0:04:51]} 21. Bxf6 {[%emt 0:03:45]} Bxf6 {[%emt 0:04:34]} 22. Bg4 {[%emt 0:04:21]} c3 {[%emt 0:10:10]} 23. b3 {[%emt 0:02:45]} Rd8 {[%emt 0:03:38]} 24. Bxe6 {[%emt 0:03:45]} fxe6 {[%emt 0:00:09]} 25. Rd3 {[%emt 0:07:34]} Rd4 {[%emt 0:01:13]} 26. Nc4 {[%emt 0:05:14]} Qd8 {[%emt 0:01:59]} 27. Rxd4 {[%emt 0:01:21]} exd4 {[%emt 0:03:39]} 28. Qd3 {[%emt 0:00:47]} 1/2-1/2

[Event "WTCC-65 2018"]
[Site "Radebeul"]
[Date "2018.07.07"]
[Round "1"]
[White "Seah, Eddy"]
[Black "Kierzek, Matthias"]
[Result "0-1"]
[ECO "B13"]
[WhiteElo "1900"]
[BlackElo "2247"]
[Annotator "NA"]
[PlyCount "73"]
[EventDate "2018.07.07"]
[EventType "team-tourn"]
[EventCountry "GER"]
[SourceTitle "playchess.com"]
[Source "ChessBase"]
[SourceQuality "1"]
[TimeControl "40/5400+30:1800+30"]

1. e4 {[%emt 0:00:00]} c6 {[%emt 0:00:00]} 2. d4 {[%emt 0:00:00]} d5 {[%emt 0:00:00]} 3. exd5 {[%emt 0:00:13]} cxd5 {[%emt 0:00:00]} 4. Bd3 {[%emt 0:00:10]} Nc6 {[%emt 0:00:12]} 5. c3 {[%emt 0:00:00]} Qc7 {[%emt 0:00:35]} 6. Ne2 {[%emt 0:01:35]} Bg4 {[%emt 0:00:46]} 7. f3 {[%emt 0:00:27]} Bd7 {[%emt 0:00:15]} 8. Bf4 {[%emt 0:01:29]} e5 {[%emt 0:00:07]} 9. dxe5 Nxe5 10. a4 {[%emt 0:10:10]} Bd6 {[%emt 0:04:45]} 11. Bg3 {[%emt 0:04:04]} Ne7 {[%emt 0:10:07]} 12. Bc2 {[%emt 0:11:59]} O-O {[%emt 0:12:40]} 13. b3 {[%emt 0:03:03]} Rad8 {[%emt 0:08:49]} 14. Nd4 {[%emt 0:04:06]} a6 {[%emt 0:03:53]} 15. O-O {[%emt 0:02:15]} N7c6 {[%emt 0:06:05]} 16. Nf5 {[%emt 0:01:46]} Bxf5 {[%emt 0:00:41]} 17. Bxf5 {[%emt 0:00:04]} d4 {[%emt 0:03:01]} 18. c4 {[%emt 0:03:47]} Nb4 {[%emt 0:10:47]} 19. Kh1 {[%emt 0:05:26]} d3 {[%emt 0:08:08]} 20. Na3 {[%emt 0:04:13]} Nec6 {[%emt 0:03:28]} 21. Bxd6 {[%emt 0:03:12]} Rxd6 {[%emt 0:00:33]} 22. Qd2 {[%emt 0:03:32]} Qa5 {[%emt 0:04:42]} 23. Be4 {[%emt 0:05:10]} Qc5 {[%emt 0:05:01]} 24. Qf2 {[%emt 0:07:51]} Qxf2 {[%emt 0:04:04]} 25. Rxf2 {[%emt 0:00:02]} f5 {[%emt 0:00:41]} 26. Bxc6 {[%emt 0:04:44]} bxc6 {[%emt 0:00:09]} 27. Rd2 {[%emt 0:05:35]} Re8 {[%emt 0:01:43]} 28. Kg1 {[%emt 0:02:02]} Rde6 {[%emt 0:02:25]} 29. Rad1 Re1+ {[%emt 0:00:44]} 30. Kf2 {[%emt 0:09:59]} R8e2+ {[%emt 0:01:17]} 31. Kg3 {[%emt 0:00:05]} Rxd2 {[%emt 0:02:35]} 32. Rxe1 {[%emt 0:01:55]} Rb2 {[%emt 0:00:34]} 33. c5 {[%emt 0:01:24]} f4+ {[%emt 0:01:24]} 34. Kxf4 {[%emt 0:00:54]} d2 {[%emt 0:00:14]} 35. Rd1 {[%emt 0:02:02]} Nd5+ {[%emt 0:00:18]} 36. Ke5 {[%emt 0:01:56]} Ne3 37. Kd4 0-1

[Event "WTCC-65 2018"]
[Site "Radebeul"]
[Date "2018.07.07"]
[Round "1"]
[White "Belinchis, Valerii"]
[Black "Gruzmann, Boris"]
[Result "0-1"]
[ECO "E80"]
[WhiteElo "1881"]
[BlackElo "2176"]
[Annotator "NA"]
[PlyCount "96"]
[EventDate "2018.07.07"]
[EventType "team-tourn"]
[EventCountry "GER"]
[SourceTitle "playchess.com"]
[Source "ChessBase"]
[SourceQuality "1"]
[TimeControl "40/5400+30:1800+30"]

1. d4 {[%emt 0:00:00]} Nf6 {[%emt 0:00:00]} 2. c4 {[%emt 0:00:00]} g6 {[%emt 0:00:00]} 3. Nc3 {[%emt 0:00:06]} Bg7 {[%emt 0:00:13]} 4. e4 {[%emt 0:00:13]} d6 {[%emt 0:00:09]} 5. f3 {[%emt 0:00:13]} Nc6 {[%emt 0:00:39]} 6. Be3 {[%emt 0:00:53]} a6 {[%emt 0:00:15]} 7. Qd2 {[%emt 0:00:59]} Rb8 {[%emt 0:00:36]} 8. Nge2 {[%emt 0:03:14]} b5 {[%emt 0:00:49]} 9. Nc1 {[%emt 0:03:04]} bxc4 {[%emt 0:07:17]} 10. Bxc4 {[%emt 0:01:02]} e5 {[%emt 0:00:23]} 11. Nb3 {[%emt 0:12:11]} Rb4 {[%emt 0:03:33]} 12. dxe5 {[%emt 0:01:35]} dxe5 {[%emt 0:15:31]} 13. Qxd8+ {[%emt 0:05:38]} Nxd8 {[%emt 0:00:12]} 14. Be2 {[%emt 0:05:34]} Ne6 {[%emt 0:01:25]} 15. O-O-O {[%emt 0:12:42]} O-O {[%emt 0:06:36]} 16. Nc5 {[%emt 0:06:57]} Nd4 {[%emt 0:04:26]} 17. Bf1 {[%emt 0:04:48]} a5 {[%emt 0:14:15]} 18. Nd3 {[%emt 0:01:12]} Rb7 {[%emt 0:10:43]} 19. Nxe5 {[%emt 0:02:22]} c5 {[%emt 0:00:33]} 20. Nc4 {[%emt 0:04:06]} Ra7 {[%emt 0:06:06]} 21. e5 {[%emt 0:08:29]} Nd7 {[%emt 0:02:22]} 22. f4 {[%emt 0:01:20]} f6 {[%emt 0:01:59]} 23. Nd6 {[%emt 0:01:49]} Ba6 {[%emt 0:02:25]} 24. Rxd4 Bxf1 {[%emt 0:04:40]} 25. e6 {[%emt 0:08:10]} cxd4 {[%emt 0:05:38]} 26. Bxd4 {[%emt 0:01:23]} Ra6 {[%emt 0:00:23]} 27. exd7 {[%emt 0:03:10]} Rxd6 {[%emt 0:05:57]} 28. Bc5 {[%emt 0:00:27]} Rxd7 {[%emt 0:01:45]} 29. Bxf8 {[%emt 0:00:31]} Bxg2 {[%emt 0:00:15]} 30. Rg1 {[%emt 0:00:44]} Bc6 {[%emt 0:01:11]} 31. Bxg7 {[%emt 0:01:24]} Kxg7 {[%emt 0:00:09]} 32. Rd1 {[%emt 0:01:26]} Rxd1+ {[%emt 0:01:13]} 33. Kxd1 {[%emt 0:00:50]} Kf7 {[%emt 0:00:09]} 34. Ke2 {[%emt 0:00:59]} Ke6 {[%emt 0:00:07]} 35. Ke3 {[%emt 0:00:29]} Kf5 {[%emt 0:00:11]} 36. Ne2 {[%emt 0:01:33]} Kg4 {[%emt 0:00:32]} 37. b3 {[%emt 0:01:22]} Kh3 {[%emt 0:01:28]} 38. Nd4 {[%emt 0:01:13]} Bd7 {[%emt 0:00:18]} 39. a3 Kxh2 {[%emt 0:00:35]} 40. b4 {[%emt 0:01:13]} axb4 {[%emt 0:01:09]} 41. axb4 {[%emt 0:30:08]} Kg3 {[%emt 0:31:09]} 42. b5 {[%emt 0:00:43]} h5 {[%emt 0:00:00]} 43. b6 {[%emt 0:00:00]} Bc8 {[%emt 0:00:00]} 44. f5 {[%emt 0:00:00]} g5 {[%emt 0:00:00]} 45. Nc6 {[%emt 0:00:00]} h4 {[%emt 0:00:00]} 46. Ne7 {[%emt 0:00:00]} Bb7 {[%emt 0:00:00]} 47. Ng8 {[%emt 0:00:00]} h3 {[%emt 0:00:00]} 48. Nxf6 {[%emt 0:00:00]} h2 {[%emt 0:00:00]} 0-1

[Event "WTCC-65 2018"]
[Site "Radebeul"]
[Date "2018.07.08"]
[Round "2"]
[White "Rashkovsky, Nukhim N"]
[Black "Villing, Dieter"]
[Result "1-0"]
[ECO "A00"]
[WhiteElo "2483"]
[BlackElo "2113"]
[Annotator "ChessBase"]
[PlyCount "37"]
[EventDate "2018.07.07"]
[EventType "team-tourn"]
[EventCountry "GER"]
[SourceTitle "playchess.com"]
[Source "ChessBase"]
[SourceQuality "1"]
[TimeControl "40/5400+30:1800+30"]

1. Nc3 {[%emt 0:00:00]} e5 {[%emt 0:01:13]} 2. Nf3 {[%emt 0:00:00]} d6 {[%emt 0:02:09]} 3. d4 {[%emt 0:00:16]} Nd7 {[%emt 0:01:32]} 4. g3 {[%emt 0:01:43]} Ngf6 {[%emt 0:01:01]} 5. Bg2 {[%emt 0:00:36]} Be7 {[%emt 0:01:02]} 6. O-O {[%emt 0:00:13]} O-O {[%emt 0:00:22]} 7. e4 {[%emt 0:00:31]} c6 {[%emt 0:00:38]} 8. a4 {[%emt 0:00:12]} a5 {[%emt 0:00:58]} 9. Re1 {[%emt 0:00:52]} Re8 {[%emt 0:00:49]} 10. h3 {[%emt 0:00:15]} Qc7 {[%emt 0:15:19]} 11. Be3 {[%emt 0:00:20]} Qb8 {[%emt 0:02:25]} 12. Bf1 {[%emt 0:06:40]} Bd8 {[%emt 0:19:35]} 13. Nd2 {[%emt 0:01:21]} d5 {[%emt 0:10:27]} 14. exd5 {[%emt 0:16:17]} cxd5 {[%emt 0:01:20]} 15. Nb5 {[%emt 0:00:32]} Bb6 {[%emt 0:11:34]} 16. Nf3 {[%emt 0:02:46]} Ne4 {[%emt 0:08:07]} 17. c4 {[%emt 0:01:11]} Ndf6 {[%emt 0:09:29]} 18. dxe5 {[%emt 0:02:58]} Bxe3 {[%emt 0:00:26]} 19. Rxe3 {[%emt 0:00:02]} 1-0

[Event "WTCC-65 2018"]
[Site "Radebeul"]
[Date "2018.07.08"]
[Round "2"]
[White "Hort, Vlastimil"]
[Black "Rooze, Jan"]
[Result "1-0"]
[ECO "B34"]
[WhiteElo "2421"]
[BlackElo "2314"]
[Annotator "ChessBase"]
[PlyCount "119"]
[EventDate "2018.07.07"]
[EventType "team-tourn"]
[EventCountry "GER"]
[SourceTitle "playchess.com"]
[Source "ChessBase"]
[SourceQuality "1"]
[TimeControl "40/5400+30:1800+30"]

1. e4 {[%emt 0:00:00]} c5 {[%emt 0:00:00]} 2. Nc3 {[%emt 0:00:00]} Nc6 {[%emt 0:00:20]} 3. Nge2 {[%emt 0:00:00]} g6 {[%emt 0:00:35]} 4. d4 {[%emt 0:02:06]} cxd4 {[%emt 0:00:45]} 5. Nxd4 {[%emt 0:00:09]} Bg7 {[%emt 0:00:02]} 6. Be3 {[%emt 0:00:11]} Nf6 {[%emt 0:00:03]} 7. Be2 {[%emt 0:08:22]} O-O {[%emt 0:00:30]} 8. O-O {[%emt 0:01:38]} d5 {[%emt 0:04:34]} 9. Nxc6 {[%emt 0:10:37]} bxc6 {[%emt 0:00:06]} 10. e5 {[%emt 0:01:22]} Ne4 {[%emt 0:02:40]} 11. f4 {[%emt 0:09:21]} Nxc3 {[%emt 0:08:06]} 12. bxc3 {[%emt 0:00:25]} f6 {[%emt 0:00:10]} 13. exf6 {[%emt 0:03:48]} exf6 {[%emt 0:03:21]} 14. Bd4 {[%emt 0:11:35]} Re8 {[%emt 0:03:10]} 15. Bf3 {[%emt 0:05:21]} Bf5 {[%emt 0:10:23]} 16. c4 {[%emt 0:09:08]} Be4 {[%emt 0:02:32]} 17. Re1 {[%emt 0:10:05]} Qc7 {[%emt 0:05:40]} 18. cxd5 {[%emt 0:07:53]} cxd5 {[%emt 0:00:49]} 19. Qd2 {[%emt 0:01:19]} Rac8 {[%emt 0:07:15]} 20. c3 {[%emt 0:00:38]} f5 {[%emt 0:02:31]} 21. Rac1 {[%emt 0:04:06]} Bh6 {[%emt 0:09:05]} 22. Be3 {[%emt 0:01:27]} Rcd8 {[%emt 0:02:25]} 23. Bd1 {[%emt 0:01:15]} Bf8 {[%emt 0:03:15]} 24. Bb3 {[%emt 0:00:34]} h6 {[%emt 0:03:17]} 25. Qf2 {[%emt 0:02:25]} Ba3 {[%emt 0:01:14]} 26. Rcd1 {[%emt 0:00:46]} Re7 {[%emt 0:04:15]} 27. Bd4 {[%emt 0:00:36]} Kh7 {[%emt 0:00:12]} 28. Qh4 {[%emt 0:02:54]} Re6 {[%emt 0:02:53]} 29. Re3 {[%emt 0:00:54]} Bf8 {[%emt 0:00:37]} 30. Rh3 {[%emt 0:02:28]} Rde8 {[%emt 0:01:10]} 31. Re1 {[%emt 0:00:42]} a5 {[%emt 0:01:21]} 32. Ree3 {[%emt 0:00:25]} g5 {[%emt 0:08:12]} 33. fxg5 {[%emt 0:00:28]} Qc6 {[%emt 0:03:54]} 34. gxh6 {[%emt 0:01:08]} Bc5 {[%emt 0:02:39]} 35. Qf2 {[%emt 0:01:07]} Bxd4 {[%emt 0:01:37]} 36. cxd4 {[%emt 0:00:05]} Rg8 {[%emt 0:01:53]} 37. Rhg3 {[%emt 0:00:32]} Rxg3 {[%emt 0:02:07]} 38. hxg3 {[%emt 0:01:50]} Rxh6 {[%emt 0:00:38]} 39. Re1 {[%emt 0:00:55]} Qg6 {[%emt 0:01:49]} 40. Bd1 {[%emt 0:00:16]} Qb6 {[%emt 0:02:41]} 41. Bf3 {[%emt 0:19:52]} Rf6 {[%emt 0:04:09]} 42. Rf1 {[%emt 0:04:14]} Kg6 {[%emt 0:06:42]} 43. Qe3 {[%emt 0:03:01]} Bxf3 {[%emt 0:09:02]} 44. gxf3 {[%emt 0:00:25]} Qb2 {[%emt 0:02:43]} 45. Rf2 {[%emt 0:00:35]} Qb1+ {[%emt 0:01:25]} 46. Kg2 {[%emt 0:00:08]} f4 {[%emt 0:01:11]} 47. Qe8+ {[%emt 0:00:32]} Kh6 {[%emt 0:01:48]} 48. Qe5 {[%emt 0:01:23]} Qg6 {[%emt 0:03:11]} 49. g4 {[%emt 0:00:20]} Qg5 {[%emt 0:00:08]} 50. Qxg5+ {[%emt 0:00:26]} Kxg5 {[%emt 0:00:05]} 51. Re2 {[%emt 0:00:04]} Rc6 {[%emt 0:00:51]} 52. Re5+ {[%emt 0:00:36]} Kg6 {[%emt 0:00:07]} 53. Rxd5 {[%emt 0:00:56]} Rc2+ {[%emt 0:00:05]} 54. Kh3 {[%emt 0:00:09]} Rxa2 {[%emt 0:00:30]} 55. Rf5 {[%emt 0:00:38]} a4 {[%emt 0:00:35]} 56. Rxf4 {[%emt 0:00:18]} Rd2 {[%emt 0:00:19]} 57. d5 {[%emt 0:00:48]} a3 {[%emt 0:00:19]} 58. Ra4 {[%emt 0:00:08]} a2 {[%emt 0:00:08]} 59. Ra6+ {[%emt 0:00:25]} Kf7 {[%emt 0:01:04]} 60. Kg3 {[%emt 0:00:20]} 1-0

[Event "WTCC-65 2018"]
[Site "Radebeul"]
[Date "2018.07.08"]
[Round "2"]
[White "Boidman, Yuri"]
[Black "Sobeck, Guenter"]
[Result "1/2-1/2"]
[ECO "A46"]
[WhiteElo "2358"]
[BlackElo "2033"]
[Annotator "NA"]
[PlyCount "65"]
[EventDate "2018.07.07"]
[EventType "team-tourn"]
[EventCountry "GER"]
[SourceTitle "playchess.com"]
[Source "ChessBase"]
[SourceQuality "1"]
[TimeControl "40/5400+30:1800+30"]

1. Nf3 {[%emt 0:00:00]} Nf6 {[%emt 0:00:00]} 2. d4 {[%emt 0:00:00]} e6 {[%emt 0:00:03]} 3. Bg5 {[%emt 0:00:00]} h6 {[%emt 0:00:45]} 4. Bh4 {[%emt 0:00:40]} b6 {[%emt 0:00:22]} 5. e3 {[%emt 0:01:14]} Bb7 {[%emt 0:00:10]} 6. Bd3 {[%emt 0:00:20]} c5 {[%emt 0:00:24] LiveBook: 79 Games} (6... g5 $5 7. Bg3 $8 g4 $11) 7. O-O {[%emt 0:00:34]} Be7 {[%emt 0:00:16]} 8. Nbd2 {[%emt 0:00:34]} d6 {[%emt 0:00:20]} 9. c3 {[%emt 0:01:57]} Nbd7 {[%emt 0:00:23]} 10. e4 {[%emt 0:00:46]} O-O {[%emt 0:03:26]} 11. Qe2 {[%emt 0:00:25]} Nh5 {[%emt 0:00:39] A47: 1 d4 Nf6 2 Nf3 b6: Torre, London and Colle Systems} 12. Bxe7 {[%emt 0:02:14]} Qxe7 {[%emt 0:00:14]} 13. g3 {[%emt 0:02:05]} Rfc8 {[%emt 0:05:07]} (13... e5 14. d5 a6 15. a4 g6 16. Qe3 Kg7 17. Nh4 Nf4 18. Bc2 b5 19. Kh1 {1-0 (46) Artemiev,V (2692)-Korotylev,A (2573) Sochi 2017}) 14. a4 {[%emt 0:02:45]} a6 {[%emt 0:00:46]} 15. Rfe1 $146 {[%emt 0:02:25]} ({Predecessor:} 15. Rac1) 15... cxd4 {[%emt 0:04:04]} 16. cxd4 {[%emt 0:02:26]} Nhf6 {[%emt 0:01:54]} 17. Rac1 {[%emt 0:03:45]} a5 {[%emt 0:06:04]} 18. b3 {[%emt 0:12:11]} e5 {[%emt 0:04:55]} 19. Bc4 {[%emt 0:10:24]} g6 {[%emt 0:01:19]} 20. h3 {[%emt 0:16:20]} Kg7 {[%emt 0:00:12]} 21. Qe3 {[%emt 0:01:13]} Nh7 {[%emt 0:17:34]} 22. Bd5 {[%emt 0:03:30]} Rxc1 {[%emt 0:01:34]} 23. Rxc1 {[%emt 0:00:12]} Rc8 {[%emt 0:00:06]} 24. Rxc8 {[%emt 0:01:21]} Bxc8 {[%emt 0:00:01]} 25. Qc3 $11 {[%emt 0:00:25]} Ba6 {[%emt 0:06:08]} 26. Qc7 {[%emt 0:09:02]} Nhf6 {[%emt 0:01:50]} 27. Bc4 {[%emt 0:13:32]} Bxc4 {[%emt 0:00:35]} 28. Nxc4 {[%emt 0:00:01]} exd4 {[%emt 0:01:49]} 29. Nxd6 {[%emt 0:06:42]} Nxe4 {[%emt 0:11:58]} 30. Nc8 {[%emt 0:03:08]} Qe6 {[%emt 0:12:14]} 31. Qc4 {[%emt 0:04:30]} Qf6 {[%emt 0:06:44]} 32. Qxd4 {[%emt 0:00:11]} Nec5 {[%emt 0:01:09]} 33. Qd5 1/2-1/2

[Event "WTCC-65 2018"]
[Site "Radebeul"]
[Date "2018.07.08"]
[Round "2"]
[White "Sharif, Mehrshad"]
[Black "Singer, Hans"]
[Result "1/2-1/2"]
[ECO "A04"]
[WhiteElo "2353"]
[BlackElo "2175"]
[Annotator "NA"]
[PlyCount "66"]
[EventDate "2018.07.07"]
[EventType "team-tourn"]
[EventCountry "GER"]
[SourceTitle "playchess.com"]
[Source "ChessBase"]
[SourceQuality "1"]
[TimeControl "40/5400+30:1800+30"]

1. Nf3 {[%emt 0:00:00]} c5 {[%emt 0:00:04]} 2. b3 {[%emt 0:00:09]} Nf6 {[%emt 0:01:30]} 3. Bb2 {[%emt 0:00:35]} e6 {[%emt 0:00:43]} 4. g3 {[%emt 0:02:23]} Nc6 {[%emt 0:00:37]} 5. Bg2 {[%emt 0:00:33]} d5 {[%emt 0:00:27]} 6. O-O {[%emt 0:01:02]} Be7 {[%emt 0:00:15]} 7. d4 {[%emt 0:01:08]} cxd4 {[%emt 0:02:23]} 8. Nxd4 {[%emt 0:00:23]} Qb6 {[%emt 0:00:48]} 9. c4 {[%emt 0:05:44]} O-O {[%emt 0:06:00]} 10. cxd5 {[%emt 0:01:00]} exd5 {[%emt 0:00:48]} 11. Nxc6 {[%emt 0:00:42]} bxc6 {[%emt 0:00:25]} 12. Nc3 {[%emt 0:05:31]} Bf5 {[%emt 0:07:35] D34: Tarrasch Defence: 6 g3 Nf6 7 Bg2 Be7} (12... Be6 13. Na4 Qb5 14. Rc1 Rac8 15. Bd4 c5 16. Nc3 Qa5 17. Bxf6 Bxf6 18. Nxd5 Qxa2 19. Nxf6+ gxf6 20. Bd5 Bxd5 21. Qxd5 Qxe2 {0-1 (33) Aronian,L (2792)-Kramnik,V (2801) Zuerich 2016}) 13. Rc1 {[%emt 0:02:33]} Rfe8 {[%emt 0:09:38]} 14. e3 {[%emt 0:07:16]} Rac8 $146 {[%emt 0:07:32]} ({Predecessor:} 14... Qa6 15. Na4 Rab8 16. Bd4 Ba3 17. Rc3 Bb4 18. Rc1 Nd7 19. Bb2 Nc5 20. Nxc5 Qxa2 21. Bd4 a5 22. Na6 Rbd8 23. Nxb4 axb4 24. Rxc6 Qa3 25. Rc5 {1-0 (25) Dudley,B (1683)-Kobryn,T (1986) ICCF email 2010}) 15. Qe2 {[%emt 0:05:47]} Qa5 {[%emt 0:02:16]} 16. Rfd1 {[%emt 0:15:03]} Ba3 {[%emt 0:04:05]} 17. Na4 {[%emt 0:04:07]} Bg4 {[%emt 0:02:14]} 18. f3 {[%emt 0:01:18]} Bxb2 {[%emt 0:00:08]} 19. Qxb2 {[%emt 0:00:09]} Be6 {[%emt 0:03:20]} 20. Qd2 {[%emt 0:04:24]} Qc7 {[%emt 0:04:07]} 21. Qd4 {[%emt 0:04:45]} Nd7 {[%emt 0:05:56]} 22. Nc5 {[%emt 0:00:50]} Qb6 {[%emt 0:09:57]} 23. Nxd7 {[%emt 0:05:47]} Bxd7 {[%emt 0:00:30]} 24. Rc5 {[%emt 0:00:48]} Qa6 {[%emt 0:03:40]} 25. Rd2 {[%emt 0:01:51]} h6 {[%emt 0:00:19]} 26. Kf2 {[%emt 0:06:24]} Bf5 {[%emt 0:03:16]} 27. b4 {[%emt 0:01:51]} Qb6 {[%emt 0:06:02]} 28. Rd1 {[%emt 0:04:35]} Rb8 {[%emt 0:00:53]} 29. a3 {[%emt 0:01:20]} Bd7 {[%emt 0:04:33]} 30. Rdc1 {[%emt 0:02:31]} Rb7 {[%emt 0:00:30]} 31. Bf1 {[%emt 0:00:24]} Reb8 {[%emt 0:03:36]} 32. R1c3 {[%emt 0:06:24]} Re8 {[%emt 0:05:14]} (32... Be8 {[%emt 0:02:34]}) 33. h4 {[%emt 0:04:16]} g6 $16 {[%emt 0:05:24]} ({Black should play} 33... Qd8) 1/2-1/2